bitfinex/quotes_SOLUSD_20240621
["timestamp","ask_amount","ask_price","bid_price","bid_amount"]
[1718974487588,20.0,131.48,131.4,22.3722]
[1718974487904,29.22,131.49,131.41,0.34]
[1718974488104,6.0864,131.44,131.4,16.2842]
[1718974488298,6.0861,131.45,131.4,22.3723]
[1718974492310,26.086,131.45,131.41,6.0877]
[1718974492502,20.0,131.45,131.41,6.0877]
[1718974493415,26.0859,131.45,131.41,6.0877]
[1718974493616,26.0859,131.45,131.4,22.3722]
[1718974493909,6.0867,131.44,131.4,16.2842]
[1718974494697,6.0867,131.44,131.37,6.596]
[1718974494698,6.0878,131.41,131.37,22.6388]
[1718974495305,6.0874,131.42,131.37,28.7281]
[1718974495508,9.75,131.41,131.37,28.7281]
[1718974495818,9.75,131.41,131.38,6.089]
[1718974496901,9.75,131.41,131.37,22.9788]
[1718974496902,9.75,131.41,131.39,6.0887]
[1718974497444,15.2149,131.45,131.37,22.4723]
[1718974497733,6.0878,131.41,131.38,0.34]
[1718974498635,6.0878,131.41,131.38,0.17]
[1718974498835,6.0878,131.41,131.37,22.1323]
[1718974499426,6.0878,131.41,131.37,16.0428]
[1718974499735,6.0878,131.41,131.37,22.1323]
[1718974499915,20.0,131.4,131.37,22.1323]
[1718974500246,20.0,131.4,131.37,16.0428]
[1718974500403,20.0,131.4,131.36,6.0899]
[1718974500607,26.0882,131.4,131.36,6.0899]
[1718974501238,20.0,131.4,131.36,6.0899]
[1718974501613,20.0,131.4,131.37,6.0896]
[1718974502322,20.0,131.41,131.37,6.0896]
[1718974502527,20.0,131.41,131.34,31.9197751]
[1718974502831,6.0883,131.4,131.35,6.4302]
[1718974503355,6.64,131.42,131.34,16.6924751]
[1718974503515,20.0,131.39,131.34,0.5013751]
[1718974503837,6.0905,131.35,131.34,0.5013751]
[1718974504034,26.0905,131.35,131.34,0.5013751]
[1718974505733,20.0,131.35,131.34,0.5013751]
[1718974505933,26.0905,131.35,131.34,0.5013751]
[1718974510137,71.0905,131.35,131.34,0.5013751]
[1718974510331,71.2605,131.35,131.34,0.5013751]
[1718974510512,71.4305,131.35,131.34,0.5013751]
[1718974511613,71.0905,131.35,131.34,0.5013751]
[1718974511829,26.0905,131.35,131.34,0.5013751]
[1718974513829,20.0,131.35,131.34,0.5013751]
[1718974514027,36.6834,131.39,131.34,0.5013751]
[1718974514232,6.0905,131.35,131.34,0.5013751]
[1718974514435,15.2222,131.39,131.34,0.5013751]
[1718974514726,6.0898,131.37,131.34,0.5013751]
[1718974515035,6.0901,131.36,131.34,0.5013751]
[1718974515236,6.0898,131.37,131.34,0.5013751]
[1718974515420,20.0,131.36,131.34,0.5013751]
[1718974515948,6.0905,131.35,131.34,0.5013751]
[1718974516931,6.0899,131.37,131.34,0.5013751]
[1718974517233,26.0903,131.36,131.34,0.5013751]
[1718974517457,20.0,131.36,131.34,0.5013751]
[1718974517618,6.0901,131.36,131.34,0.5013751]
[1718974517813,6.0905,131.35,131.34,0.5013751]
[1718974518235,26.0905,131.35,131.34,0.5013751]
[1718974518641,47.7358,131.35,131.34,0.5013751]
[1718974520635,47.9058,131.35,131.34,0.5013751]
[1718974520944,93.0758,131.35,131.34,0.5013751]
[1718974521851,92.7358,131.35,131.34,0.5013751]
[1718974522151,26.0905,131.35,131.34,0.5013751]
[1718974523130,20.0,131.35,131.34,0.5013751]
[1718974523443,26.0905,131.35,131.34,0.5013751]
[1718974529967,71.0905,131.35,131.34,0.5013751]
[1718974530171,100.6805,131.35,131.34,7.51e-05]
[1718974535363,131.1334,131.35,131.34,7.51e-05]
[1718974542870,6.0947,131.26,131.25,16.4946]
[1718974543072,26.0947,131.26,131.25,16.4946]
[1718974543247,6.0957,131.24,131.21,23.4226609]
[1718974543569,20.0,131.26,131.21,23.4226609]
[1718974543870,6.0964,131.23,131.21,23.4226609]
[1718974545270,6.0966,131.22,131.21,23.4226609]
[1718974545574,26.0966,131.22,131.21,17.2698609]
[1718974545962,26.0966,131.22,131.21,0.8576609]
[1718974547382,6.098,131.19,131.16,6.1419]
[1718974547590,6.0987,131.18,131.16,6.1419]
[1718974547954,6.0989,131.17,131.16,6.1419]
[1718974548156,6.0996,131.16,131.14,16.1214]
[1718974548351,6.0987,131.18,131.14,16.1214]
[1718974548664,20.0,131.17,131.14,16.1214]
[1718974549160,20.0,131.17,131.14,22.2216]
[1718974549374,20.0,131.17,131.14,16.1214]
[1718974550663,6.0989,131.17,131.14,16.1214]
[1718974551060,15.2438,131.21,131.14,22.2213]
[1718974551262,26.0978,131.2,131.14,16.1214]
[1718974551466,6.0982,131.19,131.14,22.2214]
[1718974551985,6.0986,131.18,131.14,16.1214]
[1718974552275,6.0982,131.19,131.14,22.2217]
[1718974552475,6.0985,131.18,131.14,22.2217]
[1718974554060,6.0985,131.18,131.14,16.1214]
[1718974555277,6.099,131.17,131.14,16.1214]
[1718974556153,35.2442,131.2,131.14,16.1214]
[1718974556154,20.0,131.2,131.14,16.1214]
[1718974556349,30.4834,131.22,131.14,16.1214]
[1718974556350,6.0998,131.15,131.14,16.1214]
[1718974557473,6.1003,131.14,131.13,6.6465]
[1718974558387,6.1003,131.14,131.11,16.6395]
[1718974558964,15.247,131.18,131.11,16.6395]
[1718974558965,6.1,131.15,131.11,22.7411]
[1718974560770,6.1,131.15,131.11,16.6395]
[1718974560970,6.1004,131.14,131.11,16.6395]
[1718974561967,6.0996,131.16,131.11,22.741]
[1718974562168,6.0983,131.19,131.14,6.0999]
[1718974562363,6.0985,131.18,131.14,6.1001]
[1718974562569,6.0983,131.19,131.11,31.893]
[1718974562757,6.0977,131.2,131.12,15.5924]
[1718974563070,26.0973,131.21,131.14,15.8967]
[1718974563256,20.0,131.21,131.17,6.0989]
[1718974563473,6.0971,131.21,131.16,6.0992]
[1718974563671,26.0968,131.22,131.15,0.17]
[1718974563874,6.0967,131.22,131.17,6.0987]
[1718974564381,6.0966,131.22,131.18,6.0983]
[1718974564884,6.0966,131.22,131.17,6.0987]
[1718974565083,6.0966,131.22,131.15,15.5886]
[1718974565389,15.2359,131.27,131.2,6.0971]
[1718974565601,20.0,131.25,131.2,15.6889]
[1718974565890,6.0949,131.26,131.21,6.0968]
[1718974566071,6.0953,131.25,131.2,15.6889]
[1718974566269,6.0949,131.26,131.21,6.097]
[1718974566669,6.0949,131.26,131.2,15.6889]
[1718974566885,6.0943,131.27,131.22,6.0965]
[1718974567065,15.2335,131.29,131.21,6.0969]
[1718974567388,6.0948,131.26,131.21,6.0969]
[1718974567687,6.0944,131.27,131.22,6.0964]
[1718974568781,26.0938,131.28,131.23,6.0958]
[1718974569085,26.0938,131.28,131.23,12.327]
[1718974569785,6.0938,131.28,131.23,12.327]
[1718974569958,6.0938,131.28,131.23,6.2312]
[1718974570161,6.0938,131.28,131.23,12.327]
[1718974570973,6.0935,131.29,131.24,6.0956]
[1718974572093,6.093,131.3,131.25,6.0949]
[1718974572271,30.4558,131.34,131.28,6.0938]
[1718974572272,6.09968385,131.34,131.28,6.0938]
[1718974572474,6.0922,131.32,131.27,6.094]
[1718974573169,6.0925,131.31,131.26,6.2646]
[1718974573994,6.0925,131.31,131.26,6.2644]
[1718974574169,6.0922,131.32,131.27,6.0942]
[1718974574374,6.0916,131.33,131.28,6.0938]
[1718974575589,6.0911,131.34,131.29,6.0932]
[1718974575769,6.0911,131.34,131.3,15.9134]
[1718974577567,6.0908,131.35,131.3,22.006]
[1718974577761,6.0908,131.35,131.3,22.0059]
[1718974577993,255.1,131.36,131.3,22.0059]
[1718974577994,261.1903,131.36,131.31,6.0923]
[1718974578367,255.1,131.36,131.3,15.9134]
[1718974578573,255.1,131.36,131.32,6.0919]
[1718974578574,261.1901,131.36,131.32,6.0919]
[1718974578773,15.2215,131.4,131.32,6.0917]
[1718974579082,6.0899,131.37,131.32,6.0917]
[1718974579484,6.0901,131.36,131.31,6.0922]
[1718974579996,6.0899,131.37,131.32,6.0918]
[1718974580299,6.0904,131.36,131.31,6.0923]
[1718974580483,6.0904,131.36,131.32,6.0919]
[1718974580681,15.2215,131.4,131.3,15.9134]
[1718974580682,6.0912,131.34,131.3,15.9134]
[1718974580996,6.0912,131.34,131.3,22.0062]
[1718974581297,6.0902,131.36,131.31,6.0923]
[1718974581986,6.0907,131.35,131.3,22.006]
[1718974582383,6.091,131.34,131.3,22.006]
[1718974582592,6.0908,131.35,131.3,22.006]
[1718974582898,6.0903,131.36,131.31,6.0923]
[1718974583104,6.0903,131.36,131.32,6.0919]
[1718974583285,6.0898,131.37,131.32,6.0919]
[1718974583490,20.0,131.36,131.32,6.0919]
[1718974583673,26.0902,131.36,131.32,6.0919]
[1718974583875,20.0,131.36,131.32,6.0919]
[1718974584283,6.0889,131.39,131.34,6.0909]
[1718974585007,6.0885,131.4,131.35,6.0905]
[1718974585502,6.0887,131.39,131.34,6.0909]
[1718974586095,15.2187,131.42,131.33,15.3986]
[1718974587097,6.0884,131.4,131.36,21.2775]
[1718974587305,20.0,131.41,131.36,27.3674]
[1718974588074,26.088,131.41,131.36,27.3674]
[1718974589194,6.0884,131.4,131.36,21.2775]
[1718974589385,20.0,131.41,131.36,21.2775]
[1718974589592,6.089,131.39,131.36,21.2775]
[1718974590100,6.0884,131.4,131.36,15.0601]
[1718974590310,6.0893,131.38,131.33,28.9842]
[1718974590589,6.0889,131.39,131.33,22.893]
[1718974590793,6.0888,131.39,131.35,6.0904]
[1718974590982,6.0888,131.39,131.34,6.0908]
[1718974591370,6.0884,131.4,131.35,6.0904]
[1718974592494,26.088,131.41,131.36,6.0901]
[1718974592697,6.0883,131.4,131.36,6.0901]
[1718974593089,6.0883,131.4,131.35,6.0903]
[1718974593995,20.0,131.41,131.33,22.893]
[1718974594300,6.0894,131.38,131.34,6.091]
[1718974594881,6.0889,131.39,131.34,6.091]
[1718974595398,6.0884,131.4,131.35,6.0904]
[1718974595997,6.0875,131.42,131.38,6.0889]
[1718974596302,6.0875,131.42,131.37,6.0894]
[1718974596486,6.0878,131.41,131.37,6.0894]
[1718974597187,6.0877,131.42,131.37,6.0894]
[1718974597382,15.2162,131.44,131.35,15.2259]
[1718974597383,6.088,131.41,131.36,6.0899]
[1718974597577,6.0883,131.4,131.36,6.0899]
[1718974597773,6.0883,131.4,131.35,6.0904]
[1718974597978,6.0883,131.4,131.36,0.34]
[1718974598282,6.088,131.41,131.36,6.4299]
[1718974598684,6.0885,131.4,131.35,6.0904]
[1718974599085,6.0888,131.39,131.35,6.0904]
[1718974599300,6.0884,131.4,131.35,6.0904]
[1718974599519,6.0879,131.41,131.36,6.0901]
[1718974599685,6.0879,131.41,131.34,45.34]
[1718974599878,44.4652,131.45,131.35,0.34]
[1718974600196,20.0,131.44,131.38,6.0891]
[1718974600500,6.0876,131.42,131.38,6.0891]
[1718974600705,6.0871,131.43,131.38,6.0891]
[1718974600905,6.0873,131.42,131.38,6.0891]
[1718974602102,20.0,131.44,131.38,6.0891]
[1718974602404,20.0,131.44,131.35,0.34]
[1718974602613,6.089,131.39,131.34,6.0907]
[1718974602790,6.0881,131.41,131.33,38.4609]
[1718974602981,6.0881,131.41,131.36,6.0897]
[1718974604687,6.0885,131.4,131.35,6.0903]
[1718974605307,6.0885,131.4,131.36,6.09]
[1718974605996,60.5581,131.43,131.37,6.0895]
[1718974605997,6.0879,131.41,131.37,6.0895]
[1718974606299,26.0874,131.42,131.38,6.0891]
[1718974606519,6.0874,131.42,131.37,6.0895]
[1718974606714,6.0874,131.42,131.34,15.2266]
[1718974606895,6.0874,131.42,131.35,45.34]
[1718974607300,6.0874,131.42,131.37,6.0894]
[1718974608111,6.0874,131.42,131.38,6.0891]
[1718974608306,6.0874,131.42,131.37,6.0894]
[1718974608707,20.0,131.44,131.35,45.34]
[1718974608913,20.0,131.44,131.36,6.0899]
[1718974608914,6.0879,131.41,131.36,6.0899]
[1718974609100,6.0879,131.41,131.37,0.34]
[1718974609493,15.2179,131.43,131.35,6.0903]
[1718974609703,6.089,131.39,131.35,6.0903]
[1718974609909,15.2179,131.43,131.33,28.9844]
[1718974609910,6.0899,131.37,131.33,28.9844]
[1718974610097,6.0899,131.37,131.33,22.893]
[1718974610501,15.2215,131.4,131.33,22.893]
[1718974610707,6.0903,131.36,131.33,22.893]
[1718974611102,15.2244,131.37,131.33,22.893]
[1718974611304,6.0903,131.36,131.33,22.893]
[1718974612124,6.0898,131.37,131.33,28.9844]
[1718974612332,6.0894,131.38,131.34,6.091]
[1718974613004,6.0891,131.39,131.34,6.0909]
[1718974613207,6.0892,131.38,131.33,29.1543]
[1718974613803,6.0892,131.38,131.34,6.0908]
[1718974614326,21.3458,131.42,131.33,28.9844]
[1718974614327,6.0897,131.37,131.33,28.9844]
[1718974614802,6.0894,131.38,131.33,28.9844]
[1718974615002,6.0898,131.37,131.33,28.9844]
[1718974615410,6.0893,131.38,131.34,6.0908]
[1718974615611,15.2204,131.41,131.34,6.0908]
[1718974615805,6.0898,131.37,131.33,28.9842]
[1718974616003,6.0898,131.37,131.33,22.893]
[1718974616215,6.0898,131.37,131.33,28.9844]
[1718974616911,6.0898,131.37,131.33,22.893]
[1718974617221,50.4425,131.4,131.3,27.7203]
[1718974617411,6.0908,131.35,131.31,6.0922]
[1718974617604,6.0903,131.36,131.31,6.0922]
[1718974618001,6.0903,131.36,131.32,6.0919]
[1718974618220,60.2222,131.39,131.32,6.0919]
[1718974618221,6.0898,131.37,131.32,6.0919]
[1718974618403,6.0902,131.36,131.32,6.0919]
[1718974618718,6.0922,131.32,131.27,15.1572]
[1718974618921,6.0924,131.31,131.27,15.1572]
[1718974619117,6.0922,131.32,131.27,21.2512]
[1718974619419,6.0922,131.32,131.28,6.0937]
[1718974619800,6.0922,131.32,131.27,21.2512]
[1718974621199,6.0922,131.32,131.27,15.1572]
[1718974621615,6.0922,131.32,131.27,21.2512]
[1718974621815,15.2285,131.34,131.27,15.1572]
[1718974622016,6.0927,131.31,131.27,15.1572]
[1718974622216,44.4785,131.34,131.29,6.0932]
[1718974622217,35.3412,131.34,131.29,6.0932]
[1718974622415,44.4787,131.34,131.27,15.1572]
[1718974622614,6.0927,131.31,131.27,21.2514]
[1718974622817,6.0922,131.32,131.27,21.2514]
[1718974623222,6.0925,131.31,131.27,15.1572]
[1718974623624,6.093,131.3,131.27,15.1572]
[1718974623829,15.2298,131.33,131.27,15.1572]
[1718974624126,6.0938,131.28,131.24,15.6387]
[1718974624352,6.094,131.28,131.24,15.6387]
[1718974624705,6.0933,131.3,131.24,15.6387]
[1718974624926,6.0933,131.3,131.25,6.0952]
[1718974625912,5.1051,131.3,131.25,6.0952]
[1718974627028,6.0934,131.29,131.25,6.0952]
[1718974627236,6.0934,131.29,131.24,21.7341]
[1718974627933,30.5239,131.35,131.26,15.2368]
[1718974628111,6.0918,131.33,131.28,6.0935]
[1718974628317,6.0917,131.33,131.28,6.0935]
[1718974628633,6.092,131.32,131.28,6.0935]
[1718974629145,6.092,131.32,131.27,6.434]
[1718974629439,6.0917,131.33,131.28,6.0937]
[1718974630517,6.0912,131.34,131.29,6.4332]
[1718974630717,6.0912,131.34,131.29,6.0932]
[1718974631440,6.0915,131.33,131.29,6.0932]
[1718974631818,6.0915,131.33,131.28,6.0936]
[1718974632143,45.105,131.38,131.29,16.2791]
[1718974632144,15.855,131.38,131.29,16.2791]
[1718974632337,6.0906,131.35,131.3,6.0926]
[1718974633018,6.091,131.34,131.3,6.0926]
[1718974633339,6.0908,131.35,131.3,6.0927]
[1718974633838,15.2238,131.38,131.31,6.4323]
[1718974634035,6.0903,131.36,131.31,6.0923]
[1718974634339,6.0902,131.36,131.32,0.34]
[1718974634519,6.0895,131.38,131.33,6.0913]
[1718974634915,6.0895,131.38,131.33,12.2384]
[1718974635144,6.0889,131.39,131.35,15.4897]
[1718974635634,6.0884,131.4,131.35,21.5799]
[1718974635812,6.0884,131.4,131.36,0.17]
[1718974636016,6.0884,131.4,131.36,0.34]
[1718974636540,6.0884,131.4,131.36,6.43]
[1718974636950,6.0884,131.4,131.36,0.34]
[1718974638330,6.0879,131.41,131.36,6.4299]
[1718974638527,37.7576,131.44,131.36,0.34]
[1718974638528,15.2164,131.44,131.36,0.34]
[1718974638732,6.0878,131.41,131.36,6.4298]
[1718974639453,29.25,131.45,131.36,0.34]
[1718974639745,6.0874,131.42,131.37,6.0894]
[1718974640044,6.0874,131.42,131.38,0.34]
[1718974642236,6.0871,131.43,131.38,6.4291]
[1718974642839,255.1,131.47,131.4,21.6114]
[1718974643029,6.0857,131.46,131.41,6.0877]
[1718974643442,261.1852,131.47,131.42,6.087]
[1718974643741,6.0855,131.46,131.41,6.0875]
[1718974644246,6.0859,131.45,131.4,21.9512]
[1718974644453,6.0859,131.45,131.41,0.34]
[1718974644946,6.0857,131.46,131.41,6.4276]
[1718974646025,15.2124,131.48,131.4,15.5232]
[1718974646227,6.0869,131.43,131.4,15.5232]
[1718974646422,6.0871,131.43,131.4,15.5232]
[1718974646628,6.0874,131.42,131.4,15.5232]
[1718974646841,15.2146,131.46,131.37,15.549]
[1718974646842,6.0878,131.41,131.37,15.549]
[1718974647032,6.0884,131.4,131.37,15.549]
[1718974648651,6.088,131.41,131.37,15.549]
[1718974649525,15.2149,131.45,131.39,6.0886]
[1718974649737,6.0871,131.43,131.38,6.0891]
[1718974651223,29.25,131.44,131.37,15.549]
[1718974651429,65.17,131.43,131.34,15.368]
[1718974651738,6.0889,131.39,131.34,21.4587]
[1718974651940,6.0878,131.41,131.36,6.0899]
[1718974652523,6.0883,131.4,131.35,6.0903]
[1718974652845,15.2205,131.41,131.34,15.368]
[1718974653047,6.0889,131.39,131.34,21.459]
[1718974654255,20.0,131.43,131.34,15.368]
[1718974654551,6.0892,131.38,131.34,15.368]
[1718974656127,6.0898,131.37,131.34,15.368]
[1718974656326,6.0903,131.36,131.31,15.3632]
[1718974656557,6.0903,131.36,131.31,21.4555]
[1718974657432,15.2226,131.39,131.31,15.3632]
[1718974657746,6.0903,131.36,131.31,21.4555]
[1718974658327,6.0906,131.35,131.31,21.4555]
[1718974658638,6.0903,131.36,131.31,21.4555]
[1718974659162,31.0359,131.4,131.31,15.3632]
[1718974659370,31.0359,131.4,131.33,6.0913]
[1718974659371,6.0893,131.38,131.33,6.0913]
[1718974659533,6.0898,131.37,131.32,6.0917]
[1718974659730,6.0895,131.38,131.33,6.0913]
[1718974660142,26.0889,131.39,131.34,6.0909]
[1718974660355,6.0889,131.39,131.34,6.0909]
[1718974661339,6.0889,131.39,131.34,6.0908]
[1718974662444,21.28652974,131.41,131.34,6.0908]
[1718974662445,6.0892,131.38,131.34,6.0908]
[1718974662633,6.0892,131.38,131.33,6.0912]
[1718974662831,6.0892,131.38,131.34,6.0909]
[1718974663052,21.28652974,131.41,131.34,6.0909]
[1718974663053,6.0888,131.39,131.34,6.0909]
[1718974664965,6.0892,131.38,131.34,6.0909]
[1718974665160,6.0884,131.4,131.31,30.5933]
[1718974665365,6.088,131.41,131.36,6.0899]
[1718974665654,6.0883,131.4,131.35,6.0903]
[1718974669957,6.088,131.41,131.36,6.0901]
[1718974670156,6.0883,131.4,131.36,6.0901]
[1718974670461,6.0883,131.4,131.35,6.0904]
[1718974671548,6.0887,131.39,131.34,6.4308]
[1718974672544,6.0887,131.39,131.35,6.0905]
[1718974672951,6.0884,131.4,131.35,6.0905]
[1718974674361,6.088,131.41,131.36,6.0899]
[1718974674564,6.2552,131.44,131.34,0.34]
[1718974674887,6.0866,131.44,131.39,6.0884]
[1718974677668,6.0861,131.45,131.4,0.17]
[1718974677842,6.0861,131.45,131.4,6.0881]
[1718974678042,6.0861,131.45,131.41,6.0878]
[1718974678267,6.0857,131.46,131.41,6.0878]
[1718974678637,6.0857,131.46,131.41,21.822]
[1718974678946,6.0852,131.47,131.42,6.0872]
[1718974679141,6.0852,131.47,131.41,15.7342]
[1718974679369,6.086,131.45,131.41,15.7342]
[1718974680466,15.2124,131.48,131.41,21.8219]
[1718974680467,6.0857,131.46,131.41,21.8219]
[1718974680641,6.0857,131.46,131.41,15.7342]
[1718974680967,6.0857,131.46,131.41,21.8217]
[1718974681150,38.58216693,131.49,131.41,15.7342]
[1718974681355,65.17,131.48,131.38,16.585]
[1718974681558,6.0878,131.41,131.38,16.585]
[1718974681767,6.0886,131.4,131.38,16.585]
[1718974682153,44.4651,131.45,131.38,16.585]
[1718974682368,6.0875,131.42,131.38,16.585]
[1718974682873,16.3711,131.46,131.38,16.585]
[1718974683050,6.0856,131.46,131.41,6.0875]
[1718974683371,6.0857,131.46,131.41,6.0875]
[1718974683545,6.086,131.45,131.4,6.088]
[1718974683857,6.086,131.45,131.41,6.0877]
[1718974684063,6.0855,131.46,131.41,6.0877]
[1718974684262,6.086,131.45,131.4,12.5997]
[1718974684853,6.0856,131.46,131.41,6.0877]
[1718974685052,6.0852,131.47,131.42,6.0873]
[1718974685574,8.16076693,131.48,131.41,6.0876]
[1718974685749,23.37306693,131.48,131.4,12.5998]
[1718974686151,6.0861,131.45,131.4,12.5998]
[1718974686447,23.37306693,131.48,131.41,6.0877]
[1718974687168,6.086,131.45,131.4,12.5997]
[1718974687356,6.0856,131.46,131.41,6.0876]
[1718974687877,6.0856,131.46,131.42,6.0872]
[1718974688067,6.0856,131.46,131.41,6.0875]
[1718974688269,6.0856,131.46,131.42,6.0873]
[1718974688655,6.0851,131.47,131.42,6.0873]
[1718974688851,6.0851,131.47,131.42,6.0871]
[1718974689355,6.0851,131.47,131.43,6.0867]
[1718974689882,6.0847,131.48,131.43,6.0865]
[1718974690266,6.0847,131.48,131.42,0.17]
[1718974690267,6.0847,131.48,131.44,6.0863]
[1718974690884,6.0843,131.49,131.44,6.0863]
[1718974691177,6.0838,131.5,131.45,6.0858]
[1718974691378,261.549,131.53,131.46,6.2554]
[1718974691379,255.1,131.53,131.46,6.2554]
[1718974691554,255.1,131.53,131.48,6.0844]
[1718974691555,6.0824,131.53,131.48,6.0844]
[1718974691756,37.85825669,131.55,131.45,6.0878]
[1718974691968,6.0834,131.51,131.46,6.0851]
[1718974692275,6.0834,131.51,131.47,0.34]
[1718974692575,6.0837,131.5,131.45,12.1734]
[1718974692781,6.0837,131.5,131.46,0.34]
[1718974692961,6.0834,131.51,131.46,6.4254]
[1718974693270,6.0829,131.52,131.47,6.085]
[1718974694161,6.0829,131.52,131.48,6.0845]
[1718974694360,6.0829,131.52,131.47,6.0846]
[1718974694882,6.0829,131.52,131.48,6.0845]
[1718974695178,6.0829,131.52,131.47,6.0847]
[1718974696166,6.0829,131.52,131.48,6.0845]
[1718974696370,6.0827,131.52,131.47,6.0848]
[1718974697195,6.0824,131.53,131.48,6.2544]
[1718974697372,6.0824,131.53,131.48,6.0844]
[1718974697688,0.8576609,131.54,131.48,6.0844]
[1718974697689,6.0827,131.52,131.48,6.0844]
[1718974697863,6.0824,131.53,131.48,6.0844]
[1718974698589,6.9396609,131.54,131.49,6.0839]
[1718974698751,0.8576609,131.54,131.49,6.0839]
[1718974698956,6.0828,131.52,131.48,6.0843]
[1718974699988,6.0828,131.52,131.47,6.0848]
[1718974700696,0.8576609,131.54,131.46,0.17]
[1718974700697,16.0631609,131.54,131.46,0.17]
[1718974700871,0.8576609,131.54,131.45,6.0878]
[1718974701078,6.0841,131.49,131.45,6.0878]
[1718974701400,6.0843,131.49,131.45,6.0878]
[1718974701773,6.0846,131.48,131.43,21.1706]
[1718974701966,6.085,131.47,131.43,21.1708]
[1718974702285,6.0847,131.48,131.43,21.1708]
[1718974703192,6.0834,131.51,131.46,6.0854]
[1718974703366,29.25,131.52,131.46,6.0854]
[1718974703568,6.0833,131.51,131.46,6.0854]
[1718974705282,44.4576,131.52,131.43,15.084]
[1718974705483,6.0845,131.48,131.43,21.1706]
[1718974705689,15.2093,131.5,131.43,15.084]
[1718974705990,6.0852,131.47,131.43,15.084]
[1718974706197,6.0852,131.47,131.43,21.1708]
[1718974706888,6.0852,131.47,131.43,15.084]
[1718974707193,6.0847,131.48,131.43,21.1708]
[1718974707365,6.0847,131.48,131.43,21.1707]
[1718974707792,6.085,131.47,131.43,21.1707]
[1718974708366,6.0862,131.45,131.41,6.4667]
[1718974709092,6.0862,131.45,131.4,21.9821]
[1718974709467,6.0857,131.46,131.4,15.8943]
[1718974709783,6.0857,131.46,131.41,6.0875]
[1718974710186,6.0851,131.47,131.42,6.0871]
[1718974711692,6.0855,131.46,131.42,6.0871]
[1718974712074,6.0855,131.46,131.41,6.0876]
[1718974712775,6.0847,131.48,131.43,6.0867]
[1718974715604,6.0855,131.46,131.41,6.0876]
[1718974715784,6.0859,131.45,131.41,6.0876]
[1718974716287,6.086,131.45,131.41,6.0876]
[1718974716783,6.086,131.45,131.41,6.0877]
[1718974717207,6.0857,131.46,131.41,6.0877]
[1718974718088,6.0852,131.47,131.42,6.0871]
[1718974720704,6.0852,131.47,131.43,6.0868]
[1718974720906,6.0852,131.47,131.42,6.0871]
[1718974721078,6.0855,131.46,131.41,6.0877]
[1718974723207,15.2112,131.49,131.41,6.0877]
[1718974723391,15.2144,131.46,131.4,15.8943]
[1718974723576,6.0872,131.43,131.4,15.8943]
[1718974723783,6.0865,131.44,131.4,21.9825]
[1718974723996,6.0861,131.45,131.4,21.9825]
[1718974724193,6.0864,131.44,131.4,15.8943]
[1718974725503,6.0868,131.43,131.4,15.8943]
[1718974726895,6.0862,131.45,131.4,21.9824]
[1718974727093,29.25,131.48,131.4,15.8943]
[1718974727399,6.0856,131.46,131.42,6.0872]
[1718974727597,6.0856,131.46,131.41,6.4276]
[1718974727987,6.085,131.47,131.42,6.0872]
[1718974728598,6.0855,131.46,131.41,6.4276]
[1718974729786,6.0855,131.46,131.42,6.0872]